Workbook

Sheet Cognos_Office_Connection_Cache (hidden)

Sheet DATA
C1: 1 | E1: =IF(ISBLANK(E2),D2&E3,E2&E3) -> Product1Units | F1: =IF(ISBLANK(F2),E2&F3,F2&F3) -> Product1Revenue LC | G1: =IF(ISBLANK(G2),F2&G3,G2&G3) -> Product2Units | H1: Product2Revenue LC | I1: Product3Units | J1: Product3Revenue LC | K1: Product4Units | L1: Product4Revenue LC | M1: Product5Units | N1: Product5Revenue LC
C2: =+C1+1 -> 2 | E2: Product1 | G2: Product2 | I2: Product3 | K2: Product4 | M2: Product5
C3: =+C2+1 -> 3 | E3: Units | F3: Revenue LC | G3: Units | H3: Revenue LC | I3: Units | J3: Revenue LC | K3: Units | L3: Revenue LC | M3: Units | N3: Revenue LC
A4: =+IF(LEFT(D4,1)="S",LEFT(D4,4),LEFT(D4,6)) -> S080 | B4: =IF(LEFT(A4,1)="S",MID(D4,11,100),MID(D4,10,100)) -> COUNTRY | C4: 4 | D4: S080---AV COUNTRY | E4: 5 | F4: =SUM(F5:F9) -> 7000 | G4: 4 | H4: =SUM(H5:H9) -> 4200 | I4: 3 | J4: =SUM(J5:J9) -> 2400 | K4: 2 | L4: 1100 | M4: 1 | N4: 400
A5: =+IF(LEFT(D5,1)="S",LEFT(D5,4),LEFT(D5,6)) -> 115141 | B5: =IF(LEFT(A5,1)="S",MID(D5,11,100),MID(D5,10,100)) -> JJDD | C5: 5 | D5: 115141---JJDD | E5: 1 | F5: 1200 | G5: 0 | H5: 0 | I5: 0 | J5: 0 | K5: 0 | L5: 0 | M5: 0 | N5: 0
A6: 102521 | B6: =IF(LEFT(A6,1)="S",MID(D6,11,100),MID(D6,10,100)) -> JJDD22 | C6: 6 | D6: 102521---JJDD22 | E6: 1 | F6: 1300 | G6: 1 | H6: 900 | I6: 0 | J6: 0 | K6: 0 | L6: 0 | M6: 0 | N6: 0
A7: 102624 | B7: JJDD33 | C7: 7 | D7: 102624---JJDD33 | E7: 1 | F7: 1400 | G7: 1 | H7: 1000 | I7: 1 | J7: 700 | K7: 0 | L7: 0 | M7: 0 | N7: 0
A8: 127797 | B8: JJDD44 | C8: 8 | D8: 127797---JJDD44 | E8: 1 | F8: 1500 | G8: 1 | H8: 1100 | I8: 1 | J8: 800 | K8: 1 | L8: 500 | M8: 0 | N8: 0
A9: 124570 | B9: JJDD44 | C9: 9 | D9: 124570---JJDD44 | E9: 1 | F9: 1600 | G9: 1 | H9: 1200 | I9: 1 | J9: 900 | K9: 1 | L9: 600 | M9: 1 | N9: 400

Sheet PAF
C2: =VLOOKUP(G2,DATA!$A:$C,3,FALSE) -> 6 | E2: Account number | G2: 102521
C3: =VLOOKUP(G3,DATA!$B:$C,2,FALSE) -> 4 | E3: Country | G3: =IFERROR(IF(VLOOKUP(G2,DATA!A4:A9,1,FALSE)=PAF!G2,"Country",""),"Country2") -> Country
E4: Start period | G4: 2015-02-01
C5: =ROUND((+G5-G4)/30,0) -> 23 | E5: End period | G5: 2016-12-31
G8: LAST 12 MONTHS
A10: 2015 Roy | B10: 2015 Std costs | C10: To keep? | E10: Product | G10: Units | H10: ASP | I10: Revenue LC | J10: Margin LC | K10: Margin %
A12: =VLOOKUP(E12,ROY!B5:P9,15,FALSE) -> 0.06 | B12: =VLOOKUP(E12,COS!B:N,13,FALSE) -> 115.3846154 | C12: =+I12 -> 1.3 | E12: Product1 | G12: =IFERROR(HLOOKUP($E12&$G$10,DATA!$D:$N,PAF!$C$2,FALSE),"") -> 1 | H12: =IFERROR(I12/G12*1000,0) -> 1300 | I12: =IFERROR(HLOOKUP($E12&$I$10,DATA!$D:$N,PAF!$C$2,FALSE)/1000,"") -> 1.3 | J12: =+I12-A12*I12-B12*G12/1000 -> 1.106615385 | K12: =IFERROR(J12/I12,0) -> 0.8512426036
A13: =VLOOKUP(E13,ROY!B6:P10,15,FALSE) -> 0.06 | B13: =VLOOKUP(E13,COS!B:N,13,FALSE) -> 115.3846154 | C13: 0.9 | E13: Product2 | G13: =IFERROR(HLOOKUP($E13&$G$10,DATA!$D:$N,PAF!$C$2,FALSE),"") -> 1 | H13: 900 | I13: =IFERROR(HLOOKUP($E13&$I$10,DATA!$D:$N,PAF!$C$2,FALSE)/1000,"") -> 0.9 | J13: =+I13-A13*I13-B13*G13/1000 -> 0.7306153846 | K13: 0.8117948718
A14: =VLOOKUP(E14,ROY!B7:P11,15,FALSE) -> 0.06 | B14: =VLOOKUP(E14,COS!B:N,13,FALSE) -> 115.3846154 | C14: =+I14 -> 0 | E14: Product3 | G14: =IFERROR(HLOOKUP($E14&$G$10,DATA!$D:$N,PAF!$C$2,FALSE),"") -> 0 | H14: 0 | I14: =IFERROR(HLOOKUP($E14&$I$10,DATA!$D:$N,PAF!$C$2,FALSE)/1000,"") -> 0 | J14: =+I14-A14*I14-B14*G14/1000 -> 0 | K14: 0
A15: =VLOOKUP(E15,ROY!B8:P12,15,FALSE) -> 0.06 | B15: =VLOOKUP(E15,COS!B:N,13,FALSE) -> 115.3846154 | C15: =+I15 -> 0 | E15: Product4 | G15: =IFERROR(HLOOKUP($E15&$G$10,DATA!$D:$N,PAF!$C$2,FALSE),"") -> 0 | H15: 0 | I15: =IFERROR(HLOOKUP($E15&$I$10,DATA!$D:$N,PAF!$C$2,FALSE)/1000,"") -> 0 | J15: =+I15-A15*I15-B15*G15/1000 -> 0 | K15: =IFERROR(J15/I15,0) -> 0
A16: =VLOOKUP(E16,ROY!B9:P13,15,FALSE) -> 0.06 | B16: =VLOOKUP(E16,COS!B:N,13,FALSE) -> 115.3846154 | C16: 0 | E16: Product5 | G16: =IFERROR(HLOOKUP($E16&$G$10,DATA!$D:$N,PAF!$C$2,FALSE),"") -> 0 | H16: 0 | I16: =IFERROR(HLOOKUP($E16&$I$10,DATA!$D:$N,PAF!$C$2,FALSE)/1000,"") -> 0 | J16: =+I16-A16*I16-B16*G16/1000 -> 0 | K16: 0
E18: TOTAL | I18: =+SUM(I12:I16) -> 2.2 | J18: =+SUM(J12:J16) -> 1.837230769 | K18: =+J18/I18 -> 0.8351048951

Sheet ROY
B1: 2015
A3: Cognos matching | C3: FYP_01 | D3: FYP_02 | E3: FYP_03 | F3: FYP_04 | G3: FYP_05 | H3: FYP_06 | I3: FYP_07 | J3: FYP_08 | K3: FYP_09 | L3: FYP_10 | M3: FYP_11 | N3: FYP_12 | P3: 2015 Avg
B4: No Product | C4: 0.06 | D4: 0.06 | E4: 0.06 | F4: 0.06 | G4: 0.06 | H4: 0.06 | I4: 0.06 | J4: 0.06 | K4: 0.06 | L4: 0.06 | M4: 0.06 | N4: 0.06 | P4: =IFERROR(AVERAGE(C4:N4),"#Missing") -> 0.06
A5: Xience V | B5: Product1 | C5: 0.06 | D5: 0.06 | E5: 0.06 | F5: 0.06 | G5: 0.06 | H5: 0.06 | I5: 0.06 | J5: 0.06 | K5: 0.06 | L5: 0.06 | M5: 0.06 | N5: 0.06 | P5: =IFERROR(AVERAGE(C5:N5),"#Missing") -> 0.06
A6: Xience Nano | B6: Product2 | C6: 0.06 | D6: 0.06 | E6: 0.06 | F6: 0.06 | G6: 0.06 | H6: 0.06 | I6: 0.06 | J6: 0.06 | K6: 0.06 | L6: 0.06 | M6: 0.06 | N6: 0.06 | P6: 0.06
A7: Xience Prime | B7: Product3 | C7: 0.06 | D7: 0.06 | E7: 0.06 | F7: 0.06 | G7: 0.06 | H7: 0.06 | I7: 0.06 | J7: 0.06 | K7: 0.06 | L7: 0.06 | M7: 0.06 | N7: 0.06 | P7: 0.06
A8: Xience Prime LL | B8: Product4 | C8: 0.06 | D8: 0.06 | E8: 0.06 | F8: 0.06 | G8: 0.06 | H8: 0.06 | I8: 0.06 | J8: 0.06 | K8: 0.06 | L8: 0.06 | M8: 0.06 | N8: 0.06 | P8: 0.06
A9: Xience SBA | B9: Product5 | C9: 0.06 | D9: 0.06 | E9: 0.06 | F9: 0.06 | G9: 0.06 | H9: 0.06 | I9: 0.06 | J9: 0.06 | K9: 0.06 | L9: 0.06 | M9: 0.06 | N9: 0.06 | P9: 0.06

Sheet COS
C1: FY07 | D1: FY08 | E1: FY09 | F1: FY10 | G1: FY11 | H1: FY12 | I1: FY13 | J1: FY14 | K1: FY15 | L1: FY16 | M1: FY14 LC | N1: FY15 LC
B2: No Product | C2: 150 | D2: 150 | E2: 150 | F2: 150 | G2: 150 | H2: 150 | I2: 150 | J2: 150 | K2: 150 | L2: 150 | M2: =+J2/1.3 -> 115.3846154 | N2: =+K2/1.3 -> 115.3846154
B3: Product1 | C3: 150 | D3: 150 | E3: 150 | F3: 150 | G3: 150 | H3: 150 | I3: 150 | J3: 150 | K3: 150 | L3: 150 | M3: =+J3/1.3 -> 115.3846154 | N3: =+K3/1.3 -> 115.3846154
B4: Product2 | C4: 150 | D4: 150 | E4: 150 | F4: 150 | G4: 150 | H4: 150 | I4: 150 | J4: 150 | K4: 150 | L4: 150 | M4: 115.3846154 | N4: 115.3846154
B5: Product3 | C5: 150 | D5: 150 | E5: 150 | F5: 150 | G5: 150 | H5: 150 | I5: 150 | J5: 150 | K5: 150 | L5: 150 | M5: 115.3846154 | N5: 115.3846154
B6: Product4 | C6: 150 | D6: 150 | E6: 150 | F6: 150 | G6: 150 | H6: 150 | I6: 150 | J6: 150 | K6: 150 | L6: 150 | M6: 115.3846154 | N6: 115.3846154
B7: Product5 | C7: 150 | D7: 150 | E7: 150 | F7: 150 | G7: 150 | H7: 150 | I7: 150 | J7: 150 | K7: 150 | L7: 150 | M7: 115.3846154 | N7: 115.3846154
